[Event "Early-Titled-Tuesday-Blitz-September-26-2023"]
[Site "Chess.com"]
[Date "2023.09.26"]
[Round "10"]
[White "PawnEatingZombie"]
[Black "cukin84"]
[Result "1/2-1/2"]
[WhiteElo "2144"]
[BlackElo "2194"]
[TimeControl "180+1"]
[EndTime "9:56:50 PDT"]
[Termination "Game drawn - insufficient material"]

1. e4 {[%clk 0:03:00.9]} 1... c6 {[%clk 0:02:59.5]} 2. d3 {[%clk 0:02:59.4]}
2... d5 {[%clk 0:02:58.4]} 3. Nd2 {[%clk 0:02:58.4]} 3... e5 {[%clk 0:02:57.4]}
4. Ngf3 {[%clk 0:02:58.3]} 4... Bd6 {[%clk 0:02:56.5]} 5. d4 {[%clk 0:02:57.7]}
5... exd4 {[%clk 0:02:53.8]} 6. exd5 {[%clk 0:02:49.2]} 6... Nf6 {[%clk
0:02:53.3]} 7. Bd3 {[%clk 0:02:40.3]} 7... O-O {[%clk 0:02:52.2]} 8. O-O {[%clk
0:02:39.9]} 8... Nxd5 {[%clk 0:02:51.8]} 9. Nxd4 {[%clk 0:02:33.4]} 9... Bxh2+
{[%clk 0:02:46.8]} 10. Kxh2 {[%clk 0:02:33.2]} 10... Qh4+ {[%clk 0:02:45.4]} 11.
Kg1 {[%clk 0:02:33.6]} 11... Qxd4 {[%clk 0:02:44.8]} 12. Nb3 {[%clk 0:02:26.3]}
12... Qh4 {[%clk 0:02:42.8]} 13. Re1 {[%clk 0:02:10.3]} 13... Bg4 {[%clk
0:02:41.6]} 14. Qd2 {[%clk 0:02:09.9]} 14... Nd7 {[%clk 0:02:35.7]} 15. Qg5
{[%clk 0:02:07.1]} 15... Qxg5 {[%clk 0:02:32.7]} 16. Bxg5 {[%clk 0:02:06.8]}
16... f6 {[%clk 0:02:29.9]} 17. Bd2 {[%clk 0:02:04.6]} 17... Ne5 {[%clk
0:02:29.7]} 18. Bf1 {[%clk 0:02:02.8]} 18... Bf5 {[%clk 0:02:25.1]} 19. c4
{[%clk 0:01:55.9]} 19... Nb6 {[%clk 0:02:20.3]} 20. Na5 {[%clk 0:01:53.5]} 20...
Rab8 {[%clk 0:02:16.7]} 21. Bc3 {[%clk 0:01:38.9]} 21... Nd3 {[%clk 0:02:11]}
22. Re7 {[%clk 0:01:30.3]} 22... Nc5 {[%clk 0:02:05]} 23. b3 {[%clk 0:01:13.1]}
23... Rfe8 {[%clk 0:01:54]} 24. Rae1 {[%clk 0:01:12]} 24... Kf8 {[%clk
0:01:53.5]} 25. Rxe8+ {[%clk 0:01:12]} 25... Rxe8 {[%clk 0:01:53.4]} 26. Bb4
{[%clk 0:01:02.8]} 26... Rxe1 {[%clk 0:01:50.6]} 27. Bxe1 {[%clk 0:01:03.7]}
27... Nbd7 {[%clk 0:01:42.6]} 28. b4 {[%clk 0:01:02.3]} 28... Nd3 {[%clk
0:01:39.2]} 29. Bc3 {[%clk 0:00:58.3]} 29... b5 {[%clk 0:01:30.6]} 30. Nxc6
{[%clk 0:00:37.7]} 30... bxc4 {[%clk 0:01:29.9]} 31. a4 {[%clk 0:00:38]} 31...
Be4 {[%clk 0:01:18.4]} 32. b5 {[%clk 0:00:34]} 32... N7c5 {[%clk 0:01:10.9]} 33.
Nxa7 {[%clk 0:00:22.5]} 33... Nxa4 {[%clk 0:01:09.1]} 34. Bd4 {[%clk 0:00:16.2]}
34... c3 {[%clk 0:01:05]} 35. Bxd3 {[%clk 0:00:07.3]} 35... Bxd3 {[%clk
0:01:03.2]} 36. b6 {[%clk 0:00:08.2]} 36... Be4 {[%clk 0:00:58.7]} 37. Nb5
{[%clk 0:00:04.8]} 37... c2 {[%clk 0:00:58.1]} 38. Be3 {[%clk 0:00:05.4]} 38...
Nxb6 {[%clk 0:00:54.9]} 39. Na3 {[%clk 0:00:03.7]} 39... Nd5 {[%clk 0:00:52.7]}
40. f3 {[%clk 0:00:03.6]} 40... Bd3 {[%clk 0:00:48.1]} 41. Bd2 {[%clk
0:00:02.9]} 41... Ke7 {[%clk 0:00:45.3]} 42. Kf2 {[%clk 0:00:03.2]} 42... Kd6
{[%clk 0:00:44.8]} 43. Ke1 {[%clk 0:00:03.2]} 43... Kc5 {[%clk 0:00:43.9]} 44.
Bc1 {[%clk 0:00:03.8]} 44... Kd4 {[%clk 0:00:41.6]} 45. Kd2 {[%clk 0:00:04.2]}
45... Bg6 {[%clk 0:00:40.3]} 46. Nxc2+ {[%clk 0:00:04.2]} 46... Bxc2 {[%clk
0:00:39.5]} 47. Kxc2 {[%clk 0:00:05.1]} 47... Ne3+ {[%clk 0:00:39.3]} 48. Kd2
{[%clk 0:00:03.8]} 48... Nxg2 {[%clk 0:00:39.3]} 49. Ke2 {[%clk 0:00:04.1]}
49... Nh4 {[%clk 0:00:37.9]} 50. Kf2 {[%clk 0:00:04.6]} 50... g5 {[%clk
0:00:36.3]} 51. Kg3 {[%clk 0:00:05.2]} 51... Nf5+ {[%clk 0:00:31.3]} 52. Kg4
{[%clk 0:00:04.7]} 52... Ne3+ {[%clk 0:00:30.9]} 53. Kh5 {[%clk 0:00:04.1]}
53... Nf5 {[%clk 0:00:24.6]} 54. Bb2+ {[%clk 0:00:03.4]} 54... Ke3 {[%clk
0:00:23.8]} 55. Bxf6 {[%clk 0:00:03.9]} 55... Kxf3 {[%clk 0:00:22.1]} 56. Bxg5
{[%clk 0:00:03.8]} 56... Ke4 {[%clk 0:00:20.4]} 57. Bc1 {[%clk 0:00:03.5]} 57...
Ke5 {[%clk 0:00:19.6]} 58. Bd2 {[%clk 0:00:03.1]} 58... Ke6 {[%clk 0:00:19.8]}
59. Bc1 {[%clk 0:00:03.2]} 59... Kf7 {[%clk 0:00:20.1]} 60. Bd2 {[%clk
0:00:03.4]} 60... Ng3+ {[%clk 0:00:19.9]} 61. Kh6 {[%clk 0:00:01.9]} 61... Ne4
{[%clk 0:00:18.6]} 62. Kxh7 {[%clk 0:00:01.6]} 1/2-1/2

[Event "Early-Titled-Tuesday-Blitz-September-26-2023"]
[Site "Chess.com"]
[Date "2023.09.26"]
[Round "10"]
[White "mapleaff"]
[Black "Juicy_Fork"]
[Result "0-1"]
[WhiteElo "2353"]
[BlackElo "2479"]
[TimeControl "180+1"]
[EndTime "9:56:59 PDT"]
[Termination "Juicy_Fork won by checkmate"]

1. e4 {[%clk 0:03:00]} 1... e5 {[%clk 0:02:58.6]} 2. Nf3 {[%clk 0:03:00.3]} 2...
Nc6 {[%clk 0:02:58.9]} 3. Bb5 {[%clk 0:03:00.7]} 3... a6 {[%clk 0:02:58.2]} 4.
Ba4 {[%clk 0:03:00.8]} 4... d6 {[%clk 0:02:58.4]} 5. O-O {[%clk 0:03:00.5]} 5...
Bd7 {[%clk 0:02:57.9]} 6. c3 {[%clk 0:02:59.9]} 6... g6 {[%clk 0:02:58.4]} 7. d4
{[%clk 0:02:59.7]} 7... Bg7 {[%clk 0:02:58.3]} 8. d5 {[%clk 0:03:00]} 8... Nce7
{[%clk 0:02:57.7]} 9. Bxd7+ {[%clk 0:02:59.3]} 9... Qxd7 {[%clk 0:02:58.6]} 10.
c4 {[%clk 0:03:00]} 10... h6 {[%clk 0:02:58.2]} 11. Nc3 {[%clk 0:03:00.3]} 11...
f5 {[%clk 0:02:57.7]} 12. Ne1 {[%clk 0:02:54.9]} 12... Nf6 {[%clk 0:02:57.1]}
13. f3 {[%clk 0:02:54.7]} 13... O-O {[%clk 0:02:56.9]} 14. Qe2 {[%clk
0:02:49.1]} 14... f4 {[%clk 0:02:55.4]} 15. Nd3 {[%clk 0:02:48.6]} 15... g5
{[%clk 0:02:55.3]} 16. b4 {[%clk 0:02:45.8]} 16... a5 {[%clk 0:02:53]} 17. b5
{[%clk 0:02:44.8]} 17... b6 {[%clk 0:02:52.1]} 18. a4 {[%clk 0:02:40]} 18... h5
{[%clk 0:02:51]} 19. Bd2 {[%clk 0:02:32.1]} 19... g4 {[%clk 0:02:49.3]} 20. Kf2
{[%clk 0:02:32.1]} 20... Ng6 {[%clk 0:02:42.4]} 21. Ke1 {[%clk 0:02:29.8]} 21...
Nh7 {[%clk 0:02:29]} 22. Nf2 {[%clk 0:02:22.8]} 22... g3 {[%clk 0:02:25.2]} 23.
hxg3 {[%clk 0:02:21.9]} 23... fxg3 {[%clk 0:02:26.1]} 24. Nh3 {[%clk 0:02:21.7]}
24... Nf4 {[%clk 0:02:26.3]} 25. Nxf4 {[%clk 0:02:14]} 25... exf4 {[%clk
0:02:26.3]} 26. Kd1 {[%clk 0:02:13.5]} 26... Be5 {[%clk 0:02:07]} 27. Rh1 {[%clk
0:02:10]} 27... Nf6 {[%clk 0:02:03.1]} 28. Kc2 {[%clk 0:02:07.6]} 28... Kf7
{[%clk 0:02:02.9]} 29. Rh4 {[%clk 0:02:05]} 29... Ke7 {[%clk 0:01:56.4]} 30.
Bxf4 {[%clk 0:02:03.5]} 30... Rae8 {[%clk 0:01:28.4]} 31. Bxe5 {[%clk 0:01:47]}
31... dxe5 {[%clk 0:01:29.3]} 32. Rf1 {[%clk 0:01:13.3]} 32... Kd8 {[%clk
0:01:10.4]} 33. f4 {[%clk 0:01:11.4]} 33... Ng4 {[%clk 0:01:07.3]} 34. f5 {[%clk
0:00:41.7]} 34... Nf6 {[%clk 0:01:07.4]} 35. Rh3 {[%clk 0:00:32.5]} 35... Rg8
{[%clk 0:01:06.2]} 36. Rf3 {[%clk 0:00:33]} 36... Qd6 {[%clk 0:00:31.9]} 37.
Rfxg3 {[%clk 0:00:28.1]} 37... Qc5 {[%clk 0:00:22]} 38. Qd3 {[%clk 0:00:14.4]}
38... h4 {[%clk 0:00:07.4]} 39. Rxg8 {[%clk 0:00:12.8]} 39... Rxg8 {[%clk
0:00:08.3]} 40. Rh2 {[%clk 0:00:06.2]} 40... Qg1 {[%clk 0:00:07.9]} 41. Rxh4
{[%clk 0:00:03.4]} 41... Rxg2+ {[%clk 0:00:06.5]} 42. Ne2 {[%clk 0:00:03]} 42...
Qe1 {[%clk 0:00:03.5]} 43. Rh8+ {[%clk 0:00:03.3]} 43... Kd7 {[%clk 0:00:03.1]}
44. d6 {[%clk 0:00:01.5]} 44... Rxe2+ {[%clk 0:00:02.7]} 45. Qxe2 {[%clk
0:00:01.8]} 45... Qxe2+ {[%clk 0:00:02.9]} 46. Kc3 {[%clk 0:00:02.7]} 46...
Nxe4+ {[%clk 0:00:03]} 47. Kb3 {[%clk 0:00:02.8]} 47... Qd3+ {[%clk 0:00:02.9]}
48. Kb2 {[%clk 0:00:03]} 48... Qc3+ {[%clk 0:00:03.3]} 49. Kb1 {[%clk
0:00:03.2]} 49... Kxd6 {[%clk 0:00:03.8]} 50. Ka2 {[%clk 0:00:04.1]} 50... Qxc4+
{[%clk 0:00:03.7]} 51. Kb2 {[%clk 0:00:04.3]} 51... Qc3+ {[%clk 0:00:04.1]} 52.
Kb1 {[%clk 0:00:05.2]} 52... Nd2+ {[%clk 0:00:04.2]} 53. Ka2 {[%clk 0:00:05.7]}
53... Qb3+ {[%clk 0:00:04.7]} 54. Ka1 {[%clk 0:00:06.3]} 54... Qa3# {[%clk
0:00:05.4]} 0-1

[Event "Early-Titled-Tuesday-Blitz-September-26-2023"]
[Site "Chess.com"]
[Date "2023.09.26"]
[Round "10"]
[White "KerryStead"]
[Black "Flopezin"]
[Result "0-1"]
[WhiteElo "2088"]
[BlackElo "2297"]
[TimeControl "180+1"]
[EndTime "9:57:00 PDT"]
[Termination "Flopezin won on time"]

1. d4 {[%clk 0:03:00.9]} 1... d5 {[%clk 0:02:59.3]} 2. e4 {[%clk 0:03:01.1]}
2... dxe4 {[%clk 0:02:55.8]} 3. Nc3 {[%clk 0:03:01.4]} 3... Nf6 {[%clk
0:02:52.3]} 4. f3 {[%clk 0:03:01.5]} 4... exf3 {[%clk 0:02:51]} 5. Nxf3 {[%clk
0:03:02.4]} 5... Bg4 {[%clk 0:02:47.8]} 6. h3 {[%clk 0:03:02.1]} 6... Bh5 {[%clk
0:02:46.6]} 7. g4 {[%clk 0:03:02.3]} 7... Bg6 {[%clk 0:02:45.1]} 8. Ne5 {[%clk
0:03:03.2]} 8... e6 {[%clk 0:02:40.5]} 9. Qf3 {[%clk 0:03:02.6]} 9... Qxd4
{[%clk 0:02:32]} 10. Nxg6 {[%clk 0:03:00.8]} 10... hxg6 {[%clk 0:02:20.9]} 11.
Qxb7 {[%clk 0:03:00.5]} 11... Bd6 {[%clk 0:01:53.7]} 12. Qxa8 {[%clk 0:02:22.4]}
12... Bg3+ {[%clk 0:01:52.2]} 13. Ke2 {[%clk 0:02:23.1]} 13... Qf2+ {[%clk
0:01:46.7]} 14. Kd3 {[%clk 0:02:16.2]} 14... O-O {[%clk 0:01:41.5]} 15. Kc4
{[%clk 0:02:03]} 15... Rd8 {[%clk 0:01:33.5]} 16. Bd3 {[%clk 0:01:27.5]} 16...
Qd4+ {[%clk 0:01:31.6]} 17. Kb3 {[%clk 0:01:27.1]} 17... Na6 {[%clk 0:01:29.1]}
18. Qxd8+ {[%clk 0:01:16.3]} 18... Qxd8 {[%clk 0:01:30]} 19. Bxa6 {[%clk
0:01:16.5]} 19... c5 {[%clk 0:01:27.8]} 20. a3 {[%clk 0:01:07.6]} 20... Qb6+
{[%clk 0:01:24.6]} 21. Ka2 {[%clk 0:01:01.5]} 21... Qxa6 {[%clk 0:01:24.5]} 22.
b3 {[%clk 0:00:45.1]} 22... Be5 {[%clk 0:01:23.5]} 23. Bb2 {[%clk 0:00:43.9]}
23... c4 {[%clk 0:01:15.4]} 24. b4 {[%clk 0:00:42.2]} 24... Bxc3 {[%clk
0:00:56.5]} 25. Bxc3 {[%clk 0:00:42.1]} 25... Nd5 {[%clk 0:00:57.2]} 26. Kb2
{[%clk 0:00:41.6]} 26... Qb6 {[%clk 0:00:51.1]} 27. Rad1 {[%clk 0:00:36.8]}
27... Qe3 {[%clk 0:00:46.2]} 28. Bd4 {[%clk 0:00:30.4]} 28... c3+ {[%clk
0:00:42.3]} 29. Kb3 {[%clk 0:00:23.5]} 29... Qe4 {[%clk 0:00:36.8]} 30. Rhe1
{[%clk 0:00:21.1]} 30... Qf3 {[%clk 0:00:33.2]} 31. Rd3 {[%clk 0:00:20.3]} 31...
Qg2 {[%clk 0:00:27.5]} 32. Red1 {[%clk 0:00:18.5]} 32... f5 {[%clk 0:00:17.3]}
33. gxf5 {[%clk 0:00:17.4]} 33... gxf5 {[%clk 0:00:18.2]} 34. Bxc3 {[%clk
0:00:17.7]} 34... Nxc3 {[%clk 0:00:16.8]} 35. Rxc3 {[%clk 0:00:18.6]} 35... e5
{[%clk 0:00:15.6]} 36. Rd7 {[%clk 0:00:18.2]} 36... e4 {[%clk 0:00:14.4]} 37.
Rc8+ {[%clk 0:00:17.6]} 37... Kh7 {[%clk 0:00:13.9]} 38. Rxa7 {[%clk 0:00:15.4]}
38... e3 {[%clk 0:00:13.7]} 39. Re7 {[%clk 0:00:15.8]} 39... Qd5+ {[%clk
0:00:13.4]} 40. c4 {[%clk 0:00:12.6]} 40... Qd3+ {[%clk 0:00:12.9]} 41. Ka4
{[%clk 0:00:13.2]} 41... e2 {[%clk 0:00:11.1]} 42. Rce8 {[%clk 0:00:12.6]} 42...
f4 {[%clk 0:00:06.6]} 43. Rxe2 {[%clk 0:00:12.3]} 43... f3 {[%clk 0:00:05.7]}
44. Rf2 {[%clk 0:00:09.8]} 44... Qd1+ {[%clk 0:00:05.6]} 45. Ka5 {[%clk
0:00:06.7]} 45... Qd3 {[%clk 0:00:02.3]} 46. Rf8 {[%clk 0:00:03.9]} 46... Qxa3+
{[%clk 0:00:02.5]} 47. Kb5 {[%clk 0:00:04.4]} 47... Qe3 {[%clk 0:00:02.2]} 48.
R8xf3 {[%clk 0:00:04]} 48... Qe5+ {[%clk 0:00:02.6]} 49. Ka4 {[%clk 0:00:04.2]}
49... Qe8+ {[%clk 0:00:02.6]} 50. Kb3 {[%clk 0:00:04.4]} 50... Qe6 {[%clk
0:00:02.6]} 51. b5 {[%clk 0:00:04.3]} 51... Qd6 {[%clk 0:00:02.8]} 0-1

[Event "Early-Titled-Tuesday-Blitz-September-26-2023"]
[Site "Chess.com"]
[Date "2023.09.26"]
[Round "10"]
[White "zajka-molotok"]
[Black "wqws"]
[Result "1-0"]
[WhiteElo "2546"]
[BlackElo "2645"]
[TimeControl "180+1"]
[EndTime "9:57:09 PDT"]
[Termination "zajka-molotok won by resignation"]

1. e4 {[%clk 0:03:00.9]} 1... c5 {[%clk 0:02:58.5]} 2. Nf3 {[%clk 0:03:00.3]}
2... d6 {[%clk 0:02:59.4]} 3. Bb5+ {[%clk 0:02:59.8]} 3... Nd7 {[%clk
0:02:59.3]} 4. a4 {[%clk 0:02:59.5]} 4... a6 {[%clk 0:02:59.1]} 5. Be2 {[%clk
0:02:59.1]} 5... g6 {[%clk 0:02:58.8]} 6. O-O {[%clk 0:02:56.2]} 6... Bg7 {[%clk
0:02:59.7]} 7. Nc3 {[%clk 0:02:55.2]} 7... Ngf6 {[%clk 0:03:00.3]} 8. a5 {[%clk
0:02:51.6]} 8... O-O {[%clk 0:03:00.7]} 9. d3 {[%clk 0:02:51.4]} 9... e5 {[%clk
0:02:58.3]} 10. Nd2 {[%clk 0:02:48.6]} 10... Nb8 {[%clk 0:02:58.1]} 11. Nc4
{[%clk 0:02:47.9]} 11... Nc6 {[%clk 0:02:58.7]} 12. Bd2 {[%clk 0:02:42.5]} 12...
Be6 {[%clk 0:02:58.8]} 13. Nb6 {[%clk 0:02:29.1]} 13... Rb8 {[%clk 0:02:58.7]}
14. Ncd5 {[%clk 0:02:28.8]} 14... Nd4 {[%clk 0:02:52.6]} 15. Bg5 {[%clk
0:02:16.5]} 15... h6 {[%clk 0:02:52.6]} 16. Nxf6+ {[%clk 0:02:15.4]} 16... Bxf6
{[%clk 0:02:53.5]} 17. Bxh6 {[%clk 0:02:15.7]} 17... Re8 {[%clk 0:02:46]} 18.
Be3 {[%clk 0:02:08.5]} 18... Kg7 {[%clk 0:02:44.1]} 19. c3 {[%clk 0:02:03.3]}
19... Nb3 {[%clk 0:02:26.1]} 20. Ra3 {[%clk 0:01:55.4]} 20... Nxa5 {[%clk
0:02:26.4]} 21. Nd5 {[%clk 0:01:51.4]} 21... Nc6 {[%clk 0:02:23.1]} 22. Nxf6
{[%clk 0:01:47.4]} 22... Qxf6 {[%clk 0:02:23]} 23. f4 {[%clk 0:01:47]} 23...
exf4 {[%clk 0:02:17.9]} 24. Bxf4 {[%clk 0:01:43.4]} 24... Qe7 {[%clk 0:02:14.4]}
25. Qd2 {[%clk 0:01:41.1]} 25... f6 {[%clk 0:02:11.3]} 26. Qe3 {[%clk
0:01:30.3]} 26... g5 {[%clk 0:02:09.8]} 27. Qg3 {[%clk 0:01:28.4]} 27... Kh8
{[%clk 0:02:05.4]} 28. Bxd6 {[%clk 0:01:26.7]} 28... Qg7 {[%clk 0:02:00.2]} 29.
Bxb8 {[%clk 0:01:23.3]} 29... Rxb8 {[%clk 0:02:01.1]} 30. h4 {[%clk 0:01:16.9]}
30... Rd8 {[%clk 0:01:37.9]} 31. hxg5 {[%clk 0:01:14.2]} 31... fxg5 {[%clk
0:01:33.6]} 32. Raa1 {[%clk 0:01:10.4]} 32... Kg8 {[%clk 0:01:28]} 33. Rad1
{[%clk 0:01:03.6]} 33... b5 {[%clk 0:01:25.1]} 34. Bg4 {[%clk 0:01:02.8]} 34...
Bb3 {[%clk 0:01:21.1]} 35. Rd2 {[%clk 0:01:01.6]} 35... b4 {[%clk 0:01:19.3]}
36. Bh5 {[%clk 0:00:53.9]} 36... Be6 {[%clk 0:01:07.5]} 37. Rdf2 {[%clk
0:00:51.6]} 37... bxc3 {[%clk 0:01:00.4]} 38. bxc3 {[%clk 0:00:52.5]} 38... Qxc3
{[%clk 0:00:41.2]} 39. Qxg5+ {[%clk 0:00:48.4]} 39... Qg7 {[%clk 0:00:41.6]} 40.
Qxc5 {[%clk 0:00:46.5]} 40... Nd4 {[%clk 0:00:41.2]} 41. Qb6 {[%clk 0:00:21.7]}
41... Qg5 {[%clk 0:00:36.5]} 42. Bd1 {[%clk 0:00:15.7]} 42... Re8 {[%clk
0:00:32.6]} 43. Qd6 {[%clk 0:00:13.9]} 43... Rd8 {[%clk 0:00:30]} 44. Rf8+
{[%clk 0:00:13]} 44... Rxf8 {[%clk 0:00:29.4]} 45. Qxf8+ {[%clk 0:00:13]} 45...
Kh7 {[%clk 0:00:29.8]} 46. Qf4 {[%clk 0:00:11.2]} 46... Qc5 {[%clk 0:00:24.7]}
47. Qh4+ {[%clk 0:00:10]} 47... Kg8 {[%clk 0:00:25]} 48. Qg3+ {[%clk 0:00:09.7]}
48... Kh7 {[%clk 0:00:25.2]} 49. Qf2 {[%clk 0:00:09.4]} 49... a5 {[%clk
0:00:24.1]} 50. Kh2 {[%clk 0:00:08.7]} 50... Qe5+ {[%clk 0:00:20.6]} 51. Qf4
{[%clk 0:00:08.2]} 51... Qxf4+ {[%clk 0:00:19.5]} 52. Rxf4 {[%clk 0:00:09.1]}
52... Kg7 {[%clk 0:00:19.4]} 53. e5 {[%clk 0:00:08.6]} 53... Nf5 {[%clk
0:00:18.5]} 54. Ra4 {[%clk 0:00:07.8]} 54... Ne3 {[%clk 0:00:18.3]} 55. Bf3
{[%clk 0:00:07.1]} 55... Kg6 {[%clk 0:00:17.2]} 56. Rxa5 {[%clk 0:00:07]} 56...
Kf5 {[%clk 0:00:18.1]} 57. d4 {[%clk 0:00:07.3]} 57... Nf1+ {[%clk 0:00:16]} 58.
Kg1 {[%clk 0:00:07]} 58... Nd2 {[%clk 0:00:16.1]} 59. Ra6 {[%clk 0:00:06.8]}
59... Bc4 {[%clk 0:00:15.5]} 60. Rf6+ {[%clk 0:00:05.9]} 60... Kg5 {[%clk
0:00:15.4]} 61. Kf2 {[%clk 0:00:06.1]} 61... Bd3 {[%clk 0:00:12.9]} 62. Ke3
{[%clk 0:00:06.1]} 62... Nxf3 {[%clk 0:00:12.5]} 63. gxf3 {[%clk 0:00:06.5]}
63... Bf5 {[%clk 0:00:12.8]} 64. f4+ {[%clk 0:00:07.2]} 64... Kg4 {[%clk
0:00:13.2]} 65. Rxf5 {[%clk 0:00:07.4]} 65... Kxf5 {[%clk 0:00:13.2]} 66. d5
{[%clk 0:00:08.3]} 1-0

[Event "Early-Titled-Tuesday-Blitz-September-26-2023"]
[Site "Chess.com"]
[Date "2023.09.26"]
[Round "10"]
[White "profedechess93"]
[Black "GaalZsoka"]
[Result "0-1"]
[WhiteElo "2632"]
[BlackElo "2491"]
[TimeControl "180+1"]
[EndTime "9:57:13 PDT"]
[Termination "GaalZsoka won on time"]

1. e4 {[%clk 0:03:00.9]} 1... c6 {[%clk 0:02:46.8]} 2. d4 {[%clk 0:03:01]} 2...
g6 {[%clk 0:02:45.9]} 3. Nc3 {[%clk 0:03:01.9]} 3... d5 {[%clk 0:02:40.9]} 4.
Be3 {[%clk 0:03:02]} 4... Bg7 {[%clk 0:02:36.7]} 5. Qd2 {[%clk 0:03:01.6]} 5...
dxe4 {[%clk 0:02:22.8]} 6. Nxe4 {[%clk 0:03:02.5]} 6... Nd7 {[%clk 0:02:22.5]}
7. Bc4 {[%clk 0:03:00.9]} 7... Ngf6 {[%clk 0:02:22]} 8. Ng5 {[%clk 0:03:01.1]}
8... Nd5 {[%clk 0:02:21.3]} 9. O-O-O {[%clk 0:02:57]} 9... O-O {[%clk 0:02:17]}
10. h4 {[%clk 0:02:56.9]} 10... Nxe3 {[%clk 0:02:15.6]} 11. Qxe3 {[%clk
0:02:48]} 11... Nf6 {[%clk 0:02:14.4]} 12. h5 {[%clk 0:02:45.7]} 12... gxh5
{[%clk 0:01:54.6]} 13. N1f3 {[%clk 0:02:24.1]} 13... Bf5 {[%clk 0:01:48.8]} 14.
Ne5 {[%clk 0:02:22.5]} 14... Bg6 {[%clk 0:01:44.5]} 15. g4 {[%clk 0:01:23.1]}
15... Nxg4 {[%clk 0:01:27.4]} 16. Qg3 {[%clk 0:01:17.8]} 16... Nxe5 {[%clk
0:01:23.9]} 17. dxe5 {[%clk 0:01:16.6]} 17... Qa5 {[%clk 0:01:14.2]} 18. f4
{[%clk 0:01:15.8]} 18... e6 {[%clk 0:01:04.1]} 19. Kb1 {[%clk 0:01:00.8]} 19...
Rad8 {[%clk 0:00:56.4]} 20. Rdg1 {[%clk 0:01:01.3]} 20... Rd2 {[%clk 0:00:51.1]}
21. Bb3 {[%clk 0:00:59.6]} 21... Qc5 {[%clk 0:00:49.3]} 22. f5 {[%clk
0:00:49.3]} 22... exf5 {[%clk 0:00:34.8]} 23. Nf3 {[%clk 0:00:42.4]} 23... f4
{[%clk 0:00:33.6]} 24. Qg5 {[%clk 0:00:37.8]} 24... Rf2 {[%clk 0:00:30.4]} 25.
Nh4 {[%clk 0:00:21.8]} 25... Bxc2+ {[%clk 0:00:09.1]} 26. Ka1 {[%clk 0:00:21.2]}
26... Bg6 {[%clk 0:00:09.6]} 27. Nxg6 {[%clk 0:00:19.4]} 27... hxg6 {[%clk
0:00:10.5]} 28. Qxg6 {[%clk 0:00:18.8]} 28... Qxe5 {[%clk 0:00:11.1]} 29. Qb1
{[%clk 0:00:16.4]} 29... f3 {[%clk 0:00:03.9]} 30. Bc2 {[%clk 0:00:10.9]} 30...
Rg2 {[%clk 0:00:02.9]} 31. Rf1 {[%clk 0:00:10.2]} 31... f2 {[%clk 0:00:02.9]}
32. Be4 {[%clk 0:00:10.8]} 32... Rd8 {[%clk 0:00:03.1]} 33. Bxg2 {[%clk
0:00:10.3]} 33... Rd2 {[%clk 0:00:03.8]} 34. Rxf2 {[%clk 0:00:05.4]} 34... Rxf2
{[%clk 0:00:04]} 35. Re1 {[%clk 0:00:06.1]} 35... Qf6 {[%clk 0:00:02.7]} 36.
Re8+ {[%clk 0:00:06.3]} 36... Bf8 {[%clk 0:00:03.4]} 37. Bh1 {[%clk 0:00:06]}
37... Kg7 {[%clk 0:00:03.8]} 38. Qg1+ {[%clk 0:00:06.2]} 38... Kh6 {[%clk
0:00:03.1]} 39. Qb1 {[%clk 0:00:06.6]} 39... Rf1 {[%clk 0:00:03.4]} 40. Re1
{[%clk 0:00:07.1]} 40... Rxe1 {[%clk 0:00:03.7]} 41. Qxe1 {[%clk 0:00:07.9]}
41... Bg7 {[%clk 0:00:04.4]} 42. Qd2+ {[%clk 0:00:07.8]} 42... Kh7 {[%clk
0:00:04.7]} 43. Be4+ {[%clk 0:00:07.5]} 43... Kg8 {[%clk 0:00:04.6]} 44. a3
{[%clk 0:00:06.4]} 44... Qf1+ {[%clk 0:00:04.9]} 45. Bb1 {[%clk 0:00:05]} 45...
Qf6 {[%clk 0:00:05.8]} 46. Qc2 {[%clk 0:00:04.5]} 46... Qd4 {[%clk 0:00:05.5]}
47. Qh7+ {[%clk 0:00:04.2]} 47... Kf8 {[%clk 0:00:06.1]} 48. Qc2 {[%clk
0:00:04.6]} 48... Qd6 {[%clk 0:00:06.1]} 49. Qe2 {[%clk 0:00:04.4]} 49... Qxa3+
{[%clk 0:00:06.1]} 50. Ba2 {[%clk 0:00:05.3]} 50... Qe7 {[%clk 0:00:06.2]} 51.
Qf2 {[%clk 0:00:05.3]} 51... Qf6 {[%clk 0:00:06.2]} 52. Qc5+ {[%clk 0:00:04.1]}
52... Kg8 {[%clk 0:00:06.2]} 53. Qc2 {[%clk 0:00:05]} 53... h4 {[%clk
0:00:06.2]} 54. Bb1 {[%clk 0:00:05.1]} 54... h3 {[%clk 0:00:06.5]} 55. Ka2
{[%clk 0:00:04.5]} 55... h2 {[%clk 0:00:06.3]} 56. Qxh2 {[%clk 0:00:03.9]} 56...
Qe6+ {[%clk 0:00:06.8]} 57. b3 {[%clk 0:00:03.8]} 57... Qe5 {[%clk 0:00:06.2]}
58. Qh7+ {[%clk 0:00:01.2]} 58... Kf8 {[%clk 0:00:06.4]} 0-1